fUST/lending_fUST_20260228
["ID","MTS","AMOUNT","RATE_DAILY","PERIOD"]
[406900469,1772267555638,-947.35,0.0001863,2]
[406900470,1772267555648,-577.2,0.0001863,2]
[406900471,1772267555658,-617.88,0.0001863,2]
[406900472,1772267555668,-1264.55,0.0001863,2]
[406900473,1772267555678,-609.45,0.0001863,2]
[406900474,1772267555688,-787.95,0.0001863,2]
[406900475,1772267555698,-1665.88,0.0001863,2]
[406900476,1772267555707,-571.43,0.0001863,2]
[406900477,1772267555716,-7573.22,0.0001863,2]
[406900478,1772267555726,-554.61,0.0001863,2]
[406900479,1772267555736,-500.0,0.0001863,2]
[406900480,1772267555746,-500.0,0.0001863,2]
[406900481,1772267555756,-500.0,0.0001863,2]
[406900482,1772267555766,-1743.64,0.0001863,2]
[406900483,1772267555776,-2006.98,0.0001863,2]
[406900484,1772267555785,-647.16,0.0001863,2]
[406900485,1772267555795,-2108.79,0.0001863,2]
[406900486,1772267555808,-839.36,0.0001863,2]
[406900487,1772267555818,-878.12,0.0001863,2]
[406900488,1772267555828,-7180.71,0.0001863,2]
[406900489,1772267555838,-784.54,0.0001863,2]
[406900490,1772267555848,-696.62,0.0001863,2]
[406900491,1772267555858,-854.66,0.0001863,2]
[406900492,1772267555867,-1726.59,0.0001863,2]
[406900493,1772267555877,-1075.35,0.0001863,2]
[406900494,1772267555887,-5780.22,0.0001863,2]
[406900495,1772267555897,-1052.35,0.0001863,2]
[406900496,1772267555907,-1604.1,0.0001863,2]
[406900497,1772267555916,-617.93,0.0001863,2]
[406900498,1772267555926,-1438.35,0.0001863,2]
[406900499,1772267555936,-1671.97,0.0001863,2]
[406900500,1772267555945,-566.35,0.0001863,2]
[406900501,1772267555955,-695.06,0.0001863,2]
[406900502,1772267555966,-692.56,0.0001863,2]
[406900503,1772267555976,-1703.31,0.0001863,2]
[406900504,1772267555985,-1091.8,0.0001863,2]
[406900505,1772267555995,-526.21,0.0001863,2]
[406900506,1772267556005,-1946.78,0.0001863,2]
[406900507,1772267556015,-1093.05,0.0001863,2]
[406900508,1772267556025,-522.9,0.0001863,2]
[406900509,1772267556035,-1010.99,0.0001863,2]
[406900510,1772267556045,-597.64,0.0001863,2]
[406900511,1772267556056,-632.06,0.0001863,2]
[406900512,1772267556065,-1404.24,0.0001863,2]
[406900513,1772267556075,-3447.77,0.0001863,2]
[406900514,1772267556084,-592.02,0.0001863,2]
[406900515,1772267556094,-1639.95,0.0001863,2]
[406900516,1772267556104,-766.57,0.0001863,2]
[406900517,1772267556114,-2199.16,0.0001863,2]
[406900518,1772267556123,-515.11,0.0001863,2]
[406900519,1772267556134,-1033.14,0.0001863,2]
[406900520,1772267556144,-1309.19,0.0001863,2]
[406900521,1772267556157,-1688.18,0.0001863,2]
[406900522,1772267556167,-3009.71,0.0001863,2]
[406900523,1772267556176,-1567.57,0.0001863,2]
[406900524,1772267556186,-1039.64,0.0001863,2]
[406900525,1772267556198,-578.85,0.0001863,2]
[406900526,1772267556208,-595.3775498,0.0001863,2]
[406900527,1772267556218,-2382.93,0.0001863,2]
[406900528,1772267556230,-2151.2,0.0001863,2]
[406900529,1772267556239,-1096.15,0.0001863,2]
[406900530,1772267556250,-683.72,0.0001863,2]
[406900531,1772267556259,-832.49,0.0001863,2]
[406900532,1772267556269,-692.6,0.0001863,2]
[406900533,1772267556283,-500.0,0.0001863,2]
[406900534,1772267556295,-3399.35,0.0001863,2]
[406900535,1772267556307,-865.62,0.0001863,2]
[406900536,1772267556318,-929.25,0.0001863,2]
[406900537,1772267556328,-856.18,0.0001863,2]
[406900538,1772267556338,-1271.22,0.0001863,2]
[406900539,1772267556347,-1063.54,0.0001863,2]
[406900540,1772267556357,-1318.72,0.0001863,2]
[406900541,1772267556367,-705.79,0.0001863,2]
[406900542,1772267556377,-2424.89,0.0001863,2]
[406900543,1772267556387,-1446.29,0.0001863,2]
[406900544,1772267556398,-500.0,0.0001863,2]
[406900545,1772267556408,-2361.52,0.0001863,2]
[406900546,1772267556419,-500.0,0.0001863,2]
[406900547,1772267556429,-4592.95,0.0001863,2]
[406900548,1772267556438,-2215.2,0.0001863,2]
[406900549,1772267556448,-1435.8,0.0001863,2]
[406900550,1772267556459,-1576.84,0.0001863,2]
[406900551,1772267556469,-2561.33,0.0001863,2]
[406900552,1772267556479,-1085.51,0.0001863,2]
[406900553,1772267556489,-717.42,0.0001863,2]
[406900554,1772267556569,-1108.2,0.0001863,2]
[406900555,1772267556579,-3100.42,0.0001863,2]
[406900556,1772267556589,-1341.93,0.0001863,2]
[406900557,1772267556598,-1305.67,0.0001863,2]
[406900558,1772267556608,-1472.57,0.0001863,2]
[406900559,1772267556618,-3197.66,0.0001863,2]
[406900560,1772267556627,-561.98,0.0001863,2]
[406900561,1772267556637,-615.34,0.0001863,2]
[406900562,1772267556647,-699.96,0.0001863,2]
[406900563,1772267556656,-1020.13,0.0001863,2]
[406900564,1772267556666,-500.0,0.0001863,2]
[406900565,1772267556675,-596.63,0.0001863,2]
[406900566,1772267556685,-500.0,0.0001863,2]
[406900567,1772267556694,-1033.36,0.0001863,2]
[406900568,1772267556703,-500.0,0.0001863,2]
[406900569,1772267556713,-500.0,0.0001863,2]
[406900570,1772267556722,-2312.35,0.0001863,2]
[406900571,1772267556732,-955.01,0.0001863,2]
[406900572,1772267556741,-806.51,0.0001863,2]
[406900573,1772267556751,-1522.66,0.0001863,2]
[406900574,1772267556761,-867.0,0.0001863,2]
[406900575,1772267556770,-7146.16,0.0001863,2]
[406900576,1772267556779,-500.0,0.0001863,2]
[406900577,1772267556789,-1028.35,0.0001863,2]
[406900578,1772267556798,-1008.96,0.0001863,2]
[406900579,1772267556808,-1352.59,0.0001863,2]
[406900580,1772267556818,-506.03,0.0001863,2]
[406900581,1772267556827,-500.0,0.0001863,2]
[406900582,1772267556836,-500.0,0.0001863,2]
[406900583,1772267556846,-500.0,0.0001863,2]
[406900584,1772267556855,-764.41,0.0001863,2]
[406900585,1772267556865,-1761.81,0.0001863,2]
[406900586,1772267556874,-2215.04,0.0001863,2]
[406900587,1772267556884,-517.59,0.0001863,2]
[406900588,1772267556893,-517.41,0.0001863,2]
[406900589,1772267556903,-963.32,0.0001863,2]
[406900590,1772267556912,-700.0,0.0001863,2]
[406900591,1772267556922,-899.12,0.0001863,2]
[406900592,1772267556931,-1300.35,0.0001863,2]
[406900593,1772267556941,-5319.48,0.0001863,2]
[406900594,1772267556950,-1252.77,0.0001863,2]
[406900595,1772267556961,-587.74,0.0001863,2]
[406900596,1772267556971,-1166.63,0.0001863,2]
[406900597,1772267556980,-899.07,0.0001863,2]
[406900598,1772267556990,-2895.24,0.0001863,2]
[406900599,1772267557000,-1068.48,0.0001863,2]
[406900600,1772267557010,-968.49,0.0001863,2]
[406900601,1772267557020,-500.0,0.0001863,2]
[406900602,1772267557030,-1587.58,0.0001863,2]
[406900603,1772267557039,-2416.57,0.0001863,2]
[406900604,1772267557051,-647.96,0.0001863,2]
[406900605,1772267557062,-8070.28,0.0001863,2]
[406900606,1772267557071,-731.15,0.0001863,2]
[406900607,1772267557081,-500.0,0.0001863,2]
[406900608,1772267557096,-1997.06,0.0001863,2]
[406900609,1772267557109,-3186.98,0.0001863,2]
[406900610,1772267557119,-3896.0,0.0001863,2]
[406900611,1772267557128,-527.94,0.0001863,2]
[406900612,1772267557138,-989.6,0.0001863,2]
[406900613,1772267557154,-7025.66,0.0001863,2]
[406900614,1772267557164,-500.0,0.0001863,2]
[406900615,1772267557173,-682.38,0.0001863,2]
[406900616,1772267557183,-728.78,0.0001863,2]
[406900617,1772267557192,-659.28,0.0001863,2]
[406900618,1772267557202,-898.93,0.0001863,2]
[406900619,1772267557212,-793.11,0.0001863,2]
[406900620,1772267557223,-1706.3,0.0001863,2]
[406900621,1772267557232,-659.85,0.0001863,2]
[406900622,1772267557241,-1134.79,0.0001863,2]
[406900623,1772267557250,-11125.25,0.0001863,2]
[406900624,1772267557260,-7153.51,0.0001863,2]
[406900625,1772267557271,-648.35,0.0001863,2]
[406900626,1772267557281,-5078.3,0.0001863,2]
[406900627,1772267557290,-683.43,0.0001863,2]
[406900628,1772267557302,-2723.16,0.0001863,2]
[406900629,1772267557312,-500.0,0.0001863,2]
[406900630,1772267557321,-4724.28,0.0001863,2]
[406900631,1772267557330,-739.63,0.0001863,2]
[406900632,1772267557341,-500.0,0.0001863,2]
[406900633,1772267557351,-4297.64,0.0001863,2]
[406900634,1772267557360,-737.38,0.0001863,2]
[406900635,1772267557370,-2549.64,0.0001863,2]
[406900636,1772267557379,-1171.08,0.0001863,2]
[406900637,1772267557388,-2640.18,0.0001863,2]
[406900638,1772267557399,-7472.22,0.0001863,2]
[406900639,1772267557409,-530.37,0.0001863,2]
[406900640,1772267557420,-1765.65,0.0001863,2]
[406900641,1772267557430,-1444.95,0.0001863,2]
[406900642,1772267557440,-4088.91,0.0001863,2]
[406900643,1772267557450,-2774.65,0.0001863,2]
[406900644,1772267557460,-3783.55,0.0001863,2]
[406900645,1772267557471,-2445.15,0.0001863,2]
[406900646,1772267557481,-1333.68,0.0001863,2]
[406900647,1772267557491,-14153.91,0.0001863,2]
[406900648,1772267557501,-500.0,0.0001863,2]
[406900649,1772267557512,-3218.57,0.0001863,2]
[406900650,1772267557522,-2092.55,0.0001863,2]
[406900651,1772267557532,-2893.22,0.0001863,2]
[406900652,1772267557542,-2259.28,0.0001863,2]
[406900653,1772267557553,-1798.11,0.0001863,2]
[406900654,1772267557563,-540.91,0.0001863,2]
[406900655,1772267557574,-500.0,0.0001863,2]
[406900656,1772267557584,-16752.77,0.0001863,2]
[406900657,1772267557595,-526.47,0.0001863,2]
[406900658,1772267557605,-1638.09,0.0001863,2]
[406900659,1772267557616,-4470.34,0.0001863,2]
[406900660,1772267557626,-2160.15,0.0001863,2]
[406900661,1772267557636,-611.61,0.0001863,2]
[406900662,1772267557646,-587.54,0.0001863,2]
[406900663,1772267557657,-500.97,0.0001863,2]
[406900664,1772267557667,-679.97,0.0001863,2]
[406900665,1772267557677,-62454.68,0.0001863,2]
[406900666,1772267557687,-4931.54,0.0001863,2]
[406900667,1772267557698,-691.25,0.0001863,2]
[406900668,1772267557708,-2603.07,0.0001863,2]
[406900669,1772267557718,-7026.09,0.0001863,2]
[406900670,1772267557729,-668.0,0.0001863,2]
[406900671,1772267557739,-1193.68,0.0001863,2]
[406900672,1772267557750,-635.83,0.0001863,2]
[406900673,1772267557760,-194.07439126,0.0001863,2]
[406900674,1772267557770,-1018.54,0.0001863,2]
[406900675,1772267557780,-8795.12,0.0001863,2]
[406900676,1772267557790,-2059.67,0.0001863,2]
[406900677,1772267557800,-511.19,0.0001863,2]
[406900678,1772267557811,-4120.89,0.0001863,2]
[406900679,1772267557821,-2791.04,0.0001863,2]
[406900680,1772267557831,-738.7,0.0001863,2]
[406900681,1772267557841,-858.19,0.0001863,2]
[406900682,1772267557851,-1558.46,0.0001863,2]
[406900683,1772267557861,-3104.3,0.0001863,2]
[406900684,1772267557871,-500.0,0.0001863,2]
[406900685,1772267557881,-4305.9,0.0001863,2]
[406900686,1772267557891,-1079.08,0.0001863,2]
[406900687,1772267557902,-17553.64,0.0001863,2]
[406900688,1772267557913,-829.59,0.0001863,2]
[406900689,1772267557924,-1590.25,0.0001863,2]
[406900690,1772267557935,-1094.77,0.0001863,2]
[406900691,1772267557945,-41294.65,0.0001863,2]
[406900692,1772267557955,-836.94,0.0001863,2]
[406900693,1772267557966,-2501.06,0.0001863,2]
[406900694,1772267557977,-624.89,0.0001863,2]
[406900695,1772267557987,-500.0,0.0001863,2]
[406900696,1772267557997,-587.66,0.0001863,2]
[406900697,1772267558008,-612.52,0.0001863,2]
[406900698,1772267558018,-920.96,0.0001863,2]
[406900699,1772267558028,-798.52,0.0001863,2]
[406900700,1772267558039,-502.1,0.0001863,2]
[406900701,1772267558050,-833.23,0.0001863,2]
[406900702,1772267558062,-1661.19,0.0001863,2]
[406900703,1772267558073,-884.15,0.0001863,2]
[406900704,1772267558084,-997.87,0.0001863,2]
[406900705,1772267558094,-2806.98,0.0001863,2]
[406900706,1772267558105,-714.12,0.0001863,2]
[406900707,1772267558115,-3389.85,0.0001863,2]
[406900708,1772267558128,-500.0,0.0001863,2]
[406900709,1772267558139,-736.98,0.0001863,2]
[406900710,1772267558152,-3040.54,0.0001863,2]
[406900711,1772267558162,-1624.77,0.0001863,2]
[406900712,1772267558173,-8862.41,0.0001863,2]
[406900713,1772267558183,-21682.96,0.0001863,2]
[406900714,1772267558195,-1097.26,0.0001863,2]
[406900715,1772267558206,-7502.8,0.0001863,2]
[406900716,1772267558216,-565.02,0.0001863,2]
[406900717,1772267558228,-6625.37,0.0001863,2]
[406900718,1772267558239,-2462.23,0.0001863,2]
[406900719,1772267558250,-1430.4,0.0001863,2]
[406900720,1772267558260,-1591.21,0.0001863,2]
[406900721,1772267558270,-1097.85,0.0001863,2]
[406900722,1772267558281,-941.74,0.0001863,2]
[406900723,1772267558291,-2991.59,0.0001863,2]
[406900724,1772267558305,-1208.52,0.0001863,2]
[406900725,1772267558315,-1852.72,0.0001863,2]
[406900726,1772267558326,-433.04763167,0.0001863,2]
[406900727,1772267558337,-2739.1,0.0001863,2]
[406900728,1772267558348,-3806.49,0.0001863,2]
[406900729,1772267558358,-7703.07,0.0001863,2]
[406900730,1772267558369,-515.24,0.0001863,2]
[406900731,1772267558380,-1269.75,0.0001863,2]
[406900732,1772267558391,-2065.59,0.0001863,2]
[406900733,1772267558401,-1723.78,0.0001863,2]
[406900734,1772267558412,-2115.78,0.0001863,2]
[406900735,1772267558422,-1897.54,0.0001863,2]
[406900736,1772267558433,-3092.48,0.0001863,2]
[406900737,1772267558444,-922.16,0.0001863,2]
[406900738,1772267558456,-1034.45,0.0001863,2]
[406900739,1772267558468,-4771.37,0.0001863,2]
[406900740,1772267558479,-500.0,0.0001863,2]
[406900741,1772267558490,-1231.85,0.0001863,2]
[406900742,1772267558501,-939.8342441,0.00018752,22]
[406900743,1772267558512,-323.2140833,0.00018826,32]
[406900744,1772267558523,-150.0,0.00018834,2]
[406900745,1772267558534,-324.3,0.00018904,2]
[406900746,1772267558545,-607.58,0.00018904,2]
[406900747,1772267558557,-387.8808817,0.00018904,2]
[406900748,1772267558575,-980.59,0.00018904,2]
[406900749,1772267558591,-158.56647612,0.00018904,2]
[406900750,1772267558604,-1353.85,0.00018904,2]
[406900751,1772267558619,-1322.07,0.00018904,2]
[406900752,1772267558635,-692.0,0.00018904,2]
[406900753,1772267558650,-564.22,0.00018904,2]
[406900754,1772267558666,-520.93,0.00018904,2]
[406900755,1772267558681,-500.0,0.00018904,2]
[406900756,1772267558696,-1711.44,0.00018904,2]
[406900757,1772267558710,-2726.35,0.00018904,2]
[406900758,1772267558725,-1744.45,0.00018904,2]
[406900759,1772267558739,-512.80195536,0.00018904,2]
[406900760,1772267558752,-237.09299873,0.00018904,2]
[406900761,1772267558765,-1041.8,0.00018904,2]
[406900762,1772267558782,-737.4,0.00018904,2]
[406900763,1772267558797,-2718.46,0.00018904,2]
[406900764,1772267558815,-770.65,0.00018904,2]
[406900765,1772267558830,-902.4,0.00018904,2]
[406900766,1772267558842,-989.47,0.00018904,2]
[406900767,1772267558855,-558.27,0.00018904,2]
[406900768,1772267558872,-603.96,0.00018904,2]
[406900769,1772267558885,-500.58,0.00018904,2]
[406900770,1772267558898,-2062.12,0.00018904,2]
[406900771,1772267558912,-719.5,0.00018904,2]
[406900772,1772267558925,-525.56,0.00018904,2]
[406900773,1772267558938,-546.89,0.00018904,2]
[406900774,1772267558951,-1727.31,0.00018904,2]
[406900775,1772267558963,-514.02,0.00018904,2]
[406900776,1772267558976,-860.84,0.00018904,2]
[406900777,1772267558989,-955.26,0.00018904,2]
[406900778,1772267559002,-500.0,0.00018904,2]
[406900779,1772267559015,-725.73,0.00018904,2]
[406900780,1772267559028,-914.38,0.00018904,2]
[406900781,1772267559041,-1116.21,0.00018904,2]
[406900782,1772267559055,-579.95,0.00018904,2]
[406900783,1772267559069,-1326.22,0.00018904,2]
[406900784,1772267559083,-1036.26,0.00018904,2]
[406900785,1772267559096,-936.85,0.00018904,2]
[406900786,1772267559109,-547.18,0.00018904,2]
[406900787,1772267559121,-1250.68,0.00018904,2]
[406900788,1772267559135,-1196.3,0.00018904,2]
[406900789,1772267559151,-1024.08,0.00018904,2]
[406900790,1772267559165,-898.6,0.00018904,2]
[406900791,1772267559178,-609.4,0.00018904,2]
[406900792,1772267559193,-1312.05,0.00018904,2]
[406900793,1772267559212,-937.86,0.00018904,2]
[406900794,1772267559226,-651.8,0.00018904,2]
[406900795,1772267559238,-500.0,0.00018904,2]
[406900796,1772267559252,-500.0,0.00018904,2]
[406900797,1772267559264,-517.11,0.00018904,2]
[406900798,1772267559276,-500.0,0.00018904,2]
[406900799,1772267559289,-194.13905601,0.00018904,2]
[406900800,1772267559302,-1446.65,0.00018904,2]
[406900801,1772267559315,-500.0,0.00018904,2]
[406900802,1772267559328,-1733.53,0.00018904,2]
[406900803,1772267559342,-1436.12,0.00018904,2]
[406900804,1772267559355,-685.31,0.00018904,2]
[406900805,1772267559368,-580.66,0.00018904,2]
[406900806,1772267559381,-571.4,0.00018904,2]
[406900807,1772267559394,-864.92,0.00018904,2]
[406900808,1772267559407,-846.6,0.00018904,2]
[406900809,1772267559419,-1593.78,0.00018904,2]
[406900810,1772267559431,-750.44,0.00018904,2]
[406900811,1772267559444,-1521.42,0.00018904,2]
[406900812,1772267559456,-1247.19,0.00018904,2]
[406900813,1772267559468,-705.82,0.00018904,2]
[406900814,1772267559480,-529.62,0.00018904,2]
[406900815,1772267559493,-500.0,0.00018904,2]
[406900816,1772267559506,-745.32,0.00018904,2]
[406900817,1772267559518,-1605.01,0.00018904,2]
[406900818,1772267559531,-1610.8,0.00018904,2]
[406900819,1772267559545,-1001.72,0.00018904,2]
[406900820,1772267559559,-627.88,0.00018904,2]
[406900821,1772267559571,-1059.56,0.00018904,2]
[406900822,1772267559584,-500.0,0.00018904,2]
[406900823,1772267559596,-927.57,0.00018904,2]
[406900824,1772267559609,-529.27,0.00018904,2]
[406900825,1772267559621,-650.87,0.00018904,2]
[406900826,1772267559634,-661.99,0.00018904,2]
[406900827,1772267559648,-500.0,0.00018904,2]
[406900828,1772267559661,-1219.63,0.00018904,2]
[406900829,1772267559673,-500.0,0.00018904,2]
[406900830,1772267559686,-818.16,0.00018904,2]
[406900831,1772267559698,-564.11,0.00018904,2]
[406900832,1772267559711,-773.68,0.00018904,2]
[406900833,1772267559725,-500.0,0.00018904,2]
[406900834,1772267559737,-1058.67,0.00018904,2]
[406900835,1772267559750,-544.13,0.00018904,2]
[406900836,1772267559762,-500.0,0.00018904,2]
[406900837,1772267559774,-1354.43,0.00018904,2]
[406900838,1772267559787,-500.0,0.00018904,2]
[406900839,1772267559801,-947.35,0.00018904,2]
[406900840,1772267559814,-577.2,0.00018904,2]
[406900841,1772267559826,-617.88,0.00018904,2]
[406900842,1772267559837,-1264.55,0.00018904,2]
[406900843,1772267559850,-609.45,0.00018904,2]
[406900844,1772267559862,-787.95,0.00018904,2]
[406900845,1772267559874,-1665.88,0.00018904,2]
[406900846,1772267559886,-571.43,0.00018904,2]
[406900847,1772267559898,-7573.22,0.00018904,2]
[406900848,1772267559911,-554.61,0.00018904,2]
[406900849,1772267559923,-500.0,0.00018904,2]
[406900850,1772267559935,-500.0,0.00018904,2]
[406900851,1772267559947,-500.0,0.00018904,2]
[406900852,1772267559959,-1743.64,0.00018904,2]
[406900853,1772267559970,-2006.98,0.00018904,2]
[406900854,1772267559981,-647.16,0.00018904,2]
[406900855,1772267559993,-2108.79,0.00018904,2]
[406900856,1772267560005,-839.36,0.00018904,2]
[406900857,1772267560017,-878.12,0.00018904,2]
[406900858,1772267560028,-7180.71,0.00018904,2]
[406900859,1772267560041,-784.54,0.00018904,2]
[406900860,1772267560052,-696.62,0.00018904,2]
[406900861,1772267560064,-854.66,0.00018904,2]
[406900862,1772267560076,-1726.59,0.00018904,2]
[406900863,1772267560087,-1075.35,0.00018904,2]
[406900864,1772267560098,-5780.22,0.00018904,2]
[406900865,1772267560110,-1052.35,0.00018904,2]
[406900866,1772267560122,-1604.1,0.00018904,2]
[406900867,1772267560134,-617.93,0.00018904,2]
[406900868,1772267560149,-1438.35,0.00018904,2]
[406900869,1772267560161,-1671.97,0.00018904,2]
[406900870,1772267560172,-566.35,0.00018904,2]
[406900871,1772267560185,-695.06,0.00018904,2]
[406900872,1772267560196,-692.56,0.00018904,2]
[406900873,1772267560207,-1703.31,0.00018904,2]
[406900874,1772267560220,-1091.8,0.00018904,2]
[406900875,1772267560232,-526.21,0.00018904,2]
[406900876,1772267560244,-1946.78,0.00018904,2]
[406900877,1772267560256,-1093.05,0.00018904,2]
[406900878,1772267560268,-522.9,0.00018904,2]
[406900879,1772267560279,-1010.99,0.00018904,2]
[406900880,1772267560291,-597.64,0.00018904,2]
[406900881,1772267560303,-632.06,0.00018904,2]
[406900882,1772267560314,-1404.24,0.00018904,2]
[406900883,1772267560325,-3447.77,0.00018904,2]
[406900884,1772267560336,-592.02,0.00018904,2]
[406900885,1772267560348,-1639.95,0.00018904,2]
[406900886,1772267560360,-766.57,0.00018904,2]
[406900887,1772267560372,-2199.16,0.00018904,2]
[406900888,1772267560385,-515.11,0.00018904,2]
[406900889,1772267560397,-1033.14,0.00018904,2]
[406900890,1772267560408,-1309.19,0.00018904,2]
[406900891,1772267560420,-1688.18,0.00018904,2]
[406900892,1772267560432,-3009.71,0.00018904,2]
[406900893,1772267560444,-1567.57,0.00018904,2]
[406900894,1772267560458,-1039.64,0.00018904,2]
[406900895,1772267560470,-578.85,0.00018904,2]
[406900896,1772267560481,-2382.93,0.00018904,2]
[406900897,1772267560493,-2151.2,0.00018904,2]
[406900898,1772267560504,-1096.15,0.00018904,2]
[406900899,1772267560516,-683.72,0.00018904,2]
[406900900,1772267560528,-832.49,0.00018904,2]
[406900901,1772267560540,-692.6,0.00018904,2]
[406900902,1772267560553,-500.0,0.00018904,2]
[406900903,1772267560564,-3399.35,0.00018904,2]
[406900904,1772267560576,-865.62,0.00018904,2]
[406900905,1772267560588,-929.25,0.00018904,2]
[406900906,1772267560600,-856.18,0.00018904,2]
[406900907,1772267560612,-1271.22,0.00018904,2]
[406900908,1772267560623,-1063.54,0.00018904,2]
[406900909,1772267560636,-1318.72,0.00018904,2]
[406900910,1772267560647,-705.79,0.00018904,2]
[406900911,1772267560659,-2424.89,0.00018904,2]
[406900912,1772267560671,-1446.29,0.00018904,2]
[406900913,1772267560683,-417.81094496,0.00018904,2]
[406900914,1772267560694,-2361.52,0.00018904,2]
[406900915,1772267560705,-500.0,0.00018904,2]
[406900916,1772267560718,-4592.95,0.00018904,2]
[406900917,1772267560729,-2215.2,0.00018904,2]
[406900918,1772267560740,-1435.8,0.00018904,2]
[406900919,1772267560753,-1576.84,0.00018904,2]
[406900920,1772267560764,-2561.33,0.00018904,2]
[406900921,1772267560776,-1085.51,0.00018904,2]
[406900922,1772267560787,-717.42,0.00018904,2]
[406900923,1772267560799,-1108.2,0.00018904,2]
[406900924,1772267560811,-3100.42,0.00018904,2]
[406900925,1772267560823,-1341.93,0.00018904,2]
[406900926,1772267560834,-1305.67,0.00018904,2]
[406900927,1772267560846,-1472.57,0.00018904,2]
[406900928,1772267560858,-3197.66,0.00018904,2]
[406900929,1772267560869,-615.34,0.00018904,2]
[406900930,1772267560881,-561.98,0.00018904,2]
[406900931,1772267560893,-699.96,0.00018904,2]
[406900932,1772267560905,-1020.13,0.00018904,2]
[406900933,1772267560917,-459.2856852,0.00018904,2]
[406900934,1772267560928,-596.63,0.00018904,2]
[406900935,1772267560940,-500.0,0.00018904,2]
[406900936,1772267560952,-1033.36,0.00018904,2]
[406900937,1772267560964,-471.38179095,0.00018904,2]
[406900938,1772267560976,-500.0,0.00018904,2]
[406900939,1772267560987,-2312.35,0.00018904,2]
[406900940,1772267560999,-955.01,0.00018904,2]
[406900941,1772267561012,-806.51,0.00018904,2]
[406900942,1772267561374,-1522.66,0.00018904,2]
[406900943,1772267561387,-867.0,0.00018904,2]
[406900944,1772267561397,-7146.16,0.00018904,2]
[406900945,1772267561407,-500.0,0.00018904,2]
[406900946,1772267561416,-1028.35,0.00018904,2]
[406900947,1772267561426,-1008.96,0.00018904,2]
[406900948,1772267561435,-1352.59,0.00018904,2]
[406900949,1772267561444,-506.03,0.00018904,2]
[406900950,1772267561454,-500.0,0.00018904,2]
[406900951,1772267561463,-500.0,0.00018904,2]
[406900952,1772267561473,-500.0,0.00018904,2]
[406900953,1772267561482,-764.41,0.00018904,2]
[406900954,1772267561492,-1761.81,0.00018904,2]
[406900955,1772267561501,-2215.04,0.00018904,2]
[406900956,1772267561511,-517.59,0.00018904,2]
[406900957,1772267561521,-517.41,0.00018904,2]
[406900958,1772267561531,-963.32,0.00018904,2]
[406900959,1772267561541,-700.0,0.00018904,2]
[406900960,1772267561552,-899.12,0.00018904,2]
[406900961,1772267561562,-1300.35,0.00018904,2]
[406900962,1772267561572,-5319.48,0.00018904,2]
[406900963,1772267561582,-1252.77,0.00018904,2]
[406900964,1772267561591,-587.74,0.00018904,2]
[406900965,1772267561600,-1166.63,0.00018904,2]
[406900966,1772267561611,-899.07,0.00018904,2]
[406900967,1772267561620,-2895.24,0.00018904,2]
[406900968,1772267561630,-1068.48,0.00018904,2]